bitfinex-derivatives/quotes_SOLF0:USTF0_20250505
["timestamp","ask_amount","ask_price","bid_price","bid_amount"]
[1746477666816,6.8774,145.43,145.38,26.52]
[1746477667015,6.8774,145.43,145.4,6.8783]
[1746477667517,25.52,145.45,145.38,26.52]
[1746477668216,6.8773,145.43,145.4,6.8783]
[1746477668519,25.52,145.45,145.38,26.52]
[1746477668707,25.52,145.45,145.41,6.8779]
[1746477669720,25.52,145.45,145.4,6.8784]
[1746477670817,25.52,145.45,145.38,26.52]
[1746477672119,25.52,145.45,145.39,6.879]
[1746477672522,25.52,145.45,145.38,26.52]
[1746477672820,6.8784,145.41,145.38,33.3993]
[1746477673919,6.8786,145.4,145.38,33.3993]
[1746477674121,25.52,145.45,145.38,26.52]
[1746477674522,6.8778,145.42,145.38,26.52]
[1746477674824,6.8778,145.42,145.39,6.8786]
[1746477675022,6.8771,145.44,145.38,26.52]
[1746477675625,6.8775,145.43,145.4,6.8783]
[1746477675924,25.52,145.45,145.4,6.8783]
[1746477677025,6.8776,145.42,145.4,6.8783]
[1746477677223,6.8776,145.42,145.39,6.8788]
[1746477678230,6.8776,145.42,145.4,6.8786]
[1746477678628,6.8774,145.43,145.4,6.8786]
[1746477678934,25.52,145.45,145.38,26.52]
[1746477679336,25.52,145.45,145.41,6.8779]
[1746477680935,6.8768,145.44,145.41,6.8779]
[1746477681235,25.52,145.45,145.41,6.8779]
[1746477681834,6.877,145.44,145.41,6.8779]
[1746477682036,25.52,145.45,145.38,26.52]
[1746477682237,25.16,145.48,145.39,11.5319068]
[1746477682640,6.8761,145.46,145.43,6.8767]
[1746477683533,6.8761,145.46,145.41,1.9455]
[1746477683738,6.8761,145.46,145.44,6.8766]
[1746477684738,6.8763,145.45,145.43,6.8769]
[1746477684932,25.16,145.48,145.41,3.9329]
[1746477685540,6.8766,145.45,145.42,6.8774]
[1746477685741,25.16,145.48,145.42,6.8774]
[1746477686143,6.8764,145.45,145.43,6.8771]
[1746477687442,6.8759,145.46,145.43,6.8771]
[1746477688440,6.8762,145.45,145.43,6.8771]
[1746477688638,6.8762,145.45,145.42,6.8774]
[1746477688838,25.16,145.48,145.41,3.9329]
[1746477689039,25.16,145.48,145.41,10.8108]
[1746477689237,25.16,145.48,145.41,8.8234]
[1746477689430,25.16,145.48,145.41,1.9455]
[1746477689739,25.16,145.48,145.38,26.52]
[1746477690335,6.8778,145.42,145.39,6.8786]
[1746477690736,11.5319068,145.47,145.39,6.8786]
[1746477690942,13.4747068,145.47,145.39,6.8786]
[1746477691542,6.8781,145.41,145.39,6.8786]
[1746477693043,6.8781,145.41,145.38,26.52]
[1746477693044,6.8781,145.41,145.38,33.3992]
[1746477693343,6.8781,145.41,145.38,26.52]
[1746477693545,6.8778,145.42,145.38,26.52]
[1746477693845,6.8778,145.42,145.39,6.879]
[1746477694539,13.4747068,145.47,145.38,26.52]
[1746477694746,11.5319068,145.47,145.38,26.52]
[1746477695040,25.16,145.48,145.38,26.52]
[1746477695440,6.8765,145.45,145.42,6.8773]
[1746477695748,6.8765,145.45,145.38,26.52]
[1746477696644,6.8765,145.45,145.42,6.8773]
[1746477696844,6.8767,145.44,145.42,6.8773]
[1746477697044,25.16,145.48,145.38,26.52]
[1746477697634,11.5319068,145.46,145.38,26.52]
[1746477698039,13.6305068,145.46,145.38,1.0]
[1746477698546,6.879,145.39,145.38,0.0001]
[1746477698948,36.6919068,145.4,145.32,4.1266]
[1746477699148,6.8809,145.35,145.3,32.0431]
[1746477699341,2.0986,145.39,145.3,25.16]
[1746477699846,36.6919068,145.4,145.3,25.16]
[1746477700349,6.8804,145.37,145.3,25.16]
[1746477700647,36.6919068,145.4,145.3,25.16]
[1746477701649,36.6919068,145.4,145.32,6.8821]
[1746477701849,36.6919068,145.4,145.33,1.0]
[1746477702349,6.8809,145.35,145.33,1.0]
[1746477706154,25.16,145.36,145.28,4.1266]
[1746477706543,6.8814,145.34,145.3,6.8831]
[1746477706750,6.8814,145.34,145.28,4.1266]
[1746477707056,25.16,145.36,145.28,4.1266]
[1746477707250,25.16,145.36,145.32,6.8823]
[1746477707749,32.0408,145.36,145.32,6.8823]
[1746477708151,32.0408,145.36,145.33,6.8818]
[1746477708355,25.16,145.36,145.3,25.14]
[1746477709257,32.0407,145.36,145.33,6.8815]
[1746477709554,25.16,145.36,145.3,25.14]
[1746477709758,6.8812,145.35,145.32,6.8821]
[1746477710061,25.16,145.36,145.3,25.14]
[1746477710560,6.8817,145.34,145.31,6.8826]
[1746477711661,6.8819,145.33,145.3,32.0231]
[1746477712565,6.8824,145.32,145.3,25.14]
[1746477712860,6.8824,145.32,145.28,4.1266]
[1746477713461,6.8824,145.32,145.29,6.8837]
[1746477713763,25.16,145.36,145.27,25.14]
[1746477714364,6.8831,145.31,145.28,6.884]
[1746477715767,6.8831,145.31,145.29,6.8837]
[1746477717561,6.8831,145.31,145.27,25.14]
[1746477717768,6.8831,145.31,145.28,6.884]
[1746477718064,25.16,145.36,145.27,25.14]
[1746477718372,4.056,145.35,145.27,6.8846]
[1746477718567,6.8836,145.3,145.27,6.8846]
[1746477718766,11.5319068,145.34,145.27,6.8846]
[1746477719665,6.8835,145.3,145.27,6.8846]
[1746477719970,25.14,145.32,145.28,6.8842]
[1746477720274,6.883,145.31,145.28,6.8842]
[1746477721673,32.0224,145.32,145.25,17.5467068]
[1746477722067,25.14,145.35,145.25,17.5467068]
[1746477722473,25.14,145.35,145.33,6.8816]
[1746477722674,25.14,145.38,145.29,25.14]
[1746477723170,32.0198,145.38,145.29,25.14]
[1746477723574,25.14,145.38,145.29,25.14]
[1746477723771,6.8805,145.36,145.29,25.14]
[1746477723973,25.14,145.38,145.29,25.14]
[1746477724271,6.881,145.35,145.29,25.14]
[1746477724474,25.14,145.38,145.29,25.14]
[1746477725770,6.8807,145.36,145.29,25.14]
[1746477726578,6.8801,145.37,145.29,25.14]
[1746477726777,25.14,145.38,145.29,25.14]
[1746477727173,6.8803,145.37,145.29,25.14]
[1746477727577,25.14,145.38,145.33,6.8816]
[1746477728277,6.8808,145.36,145.33,6.8816]
[1746477731777,6.8808,145.36,145.34,6.8814]
[1746477733687,6.881,145.35,145.29,25.14]
[1746477733876,36.6719068,145.38,145.29,25.14]
[1746477734281,6.8807,145.36,145.33,6.8817]
[1746477734481,36.6719068,145.38,145.29,25.14]
[1746477734885,6.8807,145.36,145.33,6.8815]
[1746477735384,6.8802,145.37,145.34,6.8811]
[1746477736686,6.8802,145.37,145.35,6.8809]
[1746477737782,32.0195,145.38,145.36,6.8805]
[1746477737986,25.14,145.38,145.31,4.1888]
[1746477738389,6.8803,145.37,145.35,6.8808]
[1746477738588,6.8803,145.37,145.31,4.1888]
[1746477738889,6.8803,145.37,145.34,6.8812]
[1746477740289,6.8807,145.36,145.34,6.8812]
[1746477745085,6.8807,145.36,145.33,6.8816]
[1746477745292,25.14,145.38,145.33,6.8816]
[1746477745485,25.14,145.38,145.31,4.1888]
[1746477746293,36.6519068,145.41,145.31,4.1888]
[1746477746681,6.8803,145.37,145.31,4.1888]
[1746477747086,36.6519068,145.41,145.31,4.1888]
[1746477747386,6.8808,145.36,145.33,6.8815]
[1746477747691,6.8808,145.36,145.31,4.1888]
[1746477748089,6.8808,145.36,145.34,6.8813]
[1746477748390,13.7574,145.4,145.31,4.1888]
[1746477748583,11.5319068,145.38,145.3,6.883]
[1746477748786,25.12,145.37,145.29,25.14]
[1746477748990,11.5319068,145.35,145.26,29.2265]
[1746477749391,11.5319068,145.35,145.26,27.1434]
[1746477749990,6.8835,145.3,145.27,6.8846]
[1746477750389,25.12,145.33,145.26,25.12]
[1746477750593,6.8836,145.3,145.27,6.8844]
[1746477751697,6.8839,145.29,145.27,6.8844]
[1746477751897,25.12,145.33,145.26,32.005]
[1746477752090,11.5319068,145.32,145.23,27.1434]
[1746477752396,6.8844,145.28,145.26,6.8852]
[1746477752694,6.8844,145.28,145.23,27.1434]
[1746477752996,6.8844,145.28,145.25,6.8853]
[1746477753398,6.8844,145.28,145.23,27.1434]
[1746477753696,11.5319068,145.32,145.23,27.1434]
[1746477753895,25.12,145.33,145.23,27.1434]
[1746477754294,25.12,145.33,145.27,6.8847]
[1746477754996,6.8835,145.3,145.27,6.8847]
[1746477755895,6.8831,145.31,145.28,6.8842]
[1746477756897,25.12,145.33,145.23,38.6753068]
[1746477756898,6.8826,145.32,145.23,38.6753068]
[1746477757086,25.12,145.33,145.23,38.6753068]
[1746477757491,6.8815,145.34,145.31,6.8825]
[1746477757692,6.8815,145.34,145.28,25.14]
[1746477758600,6.8819,145.33,145.28,25.14]
[1746477758900,25.14,145.36,145.28,32.0238]
[1746477759200,27.1786,145.36,145.28,32.0238]
[1746477759402,6.8831,145.31,145.28,25.14]
[1746477759698,27.1786,145.36,145.28,25.14]
[1746477759898,6.8832,145.31,145.28,25.14]
[1746477760099,27.1786,145.36,145.28,25.14]
[1746477760498,27.1786,145.36,145.28,32.024]
[1746477761201,6.883,145.31,145.28,32.024]
[1746477763102,11.5319068,145.34,145.28,25.14]
[1746477763304,11.5319068,145.34,145.25,25.14]
[1746477763605,6.8838,145.29,145.26,6.8849]
[1746477767103,6.8847,145.27,145.25,6.8855]
[1746477767308,6.8847,145.27,145.24,3.0649]
[1746477767501,6.8847,145.27,145.24,1.0]
[1746477767703,6.8852,145.26,145.24,7.8859]
[1746477767906,6.8852,145.26,145.24,1.0]
[1746477768704,6.885,145.27,145.24,1.0]
[1746477769109,6.885,145.27,145.25,6.8856]
[1746477769409,6.8845,145.28,145.25,6.8856]
[1746477769612,25.14,145.32,145.24,1.0]
[1746477769813,25.14,145.32,145.24,3.0909]
[1746477770012,25.14,145.32,145.25,27.2092]
[1746477770615,6.8831,145.31,145.28,6.8839]
[1746477770814,25.14,145.32,145.25,27.2092]
[1746477771218,6.8832,145.31,145.28,6.8839]
[1746477772415,6.8832,145.31,145.29,6.8837]
[1746477772914,6.8832,145.31,145.25,27.2092]
[1746477773414,6.8832,145.31,145.28,6.884]
[1746477773616,6.8834,145.3,145.28,6.884]
[1746477773809,25.14,145.32,145.28,6.884]
[1746477774015,6.8831,145.31,145.28,6.884]
[1746477774210,6.8831,145.31,145.29,6.8837]
[1746477775520,6.8831,145.31,145.28,6.884]
[1746477779128,6.8834,145.3,145.28,6.884]
[1746477779321,6.8834,145.3,145.27,6.8845]
[1746477779831,25.14,145.32,145.25,34.0946]
[1746477780023,25.14,145.32,145.25,32.0054]
[1746477780220,11.5319068,145.31,145.25,6.8854]
[1746477780524,11.5319068,145.31,145.24,1.0]
[1746477780923,6.8846,145.28,145.25,6.8856]
[1746477782126,6.8852,145.27,145.24,7.8859]
[1746477782323,11.5319068,145.31,145.24,1.0]
[1746477782526,11.5319068,145.28,145.24,1.0]
[1746477782730,6.8857,145.25,145.24,1.0]
[1746477782930,25.12,145.27,145.18,2.0256]
[1746477783127,11.5319068,145.25,145.18,2.0256]
[1746477783323,6.888,145.21,145.16,25.12]
[1746477783519,11.5319068,145.25,145.16,25.12]
[1746477783828,6.8869,145.23,145.16,25.12]
[1746477784432,6.8869,145.23,145.2,6.8878]
[1746477785127,11.5319068,145.25,145.16,25.12]
[1746477785334,25.12,145.27,145.16,25.12]
[1746477785830,6.8868,145.23,145.2,6.8879]
[1746477786632,6.8868,145.23,145.21,6.8875]
[1746477787022,6.8868,145.23,145.16,25.12]
[1746477787329,6.8868,145.23,145.2,6.8877]
[1746477787534,6.8868,145.23,145.16,25.12]
[1746477787937,6.8868,145.23,145.2,6.8878]
[1746477788636,6.8864,145.24,145.16,25.12]
[1746477788837,25.12,145.27,145.18,11.5319068]
[1746477789032,32.005,145.27,145.25,6.8856]
[1746477789234,25.14,145.3,145.21,36.6719068]
[1746477789438,25.14,145.3,145.22,31.3084]
[1746477790141,6.8839,145.29,145.26,6.8849]
[1746477790639,25.14,145.3,145.22,31.3084]
[1746477790941,32.0235,145.3,145.27,6.8844]
[1746477791435,6.884,145.29,145.26,6.8849]
[1746477791633,25.14,145.3,145.26,6.8849]
[1746477792036,6.8841,145.29,145.27,6.8847]
[1746477792237,25.14,145.3,145.22,31.3084]
[1746477792637,25.12,145.33,145.29,6.8838]
[1746477793243,6.8827,145.32,145.29,6.8838]
[1746477793549,25.12,145.33,145.3,6.8832]
[1746477793750,25.12,145.33,145.27,25.12]
[1746477794047,25.12,145.33,145.29,6.8835]
[1746477794248,6.8827,145.32,145.29,6.8835]
[1746477795752,32.0021,145.33,145.3,6.883]
[1746477796045,25.12,145.33,145.27,25.12]
[1746477796251,6.8817,145.34,145.27,25.12]
[1746477796448,6.8817,145.34,145.28,1.9456]
[1746477796853,6.8812,145.35,145.32,6.8821]
[1746477797858,25.12,145.36,145.29,4.2991]
[1746477798552,6.8807,145.36,145.29,4.2991]
[1746477798752,25.1,145.39,145.29,4.2991]
[1746477799152,6.8809,145.36,145.32,6.882]
[1746477799353,25.1,145.39,145.32,6.882]
[1746477799853,6.8814,145.34,145.32,6.882]
[1746477800055,25.1,145.39,145.3,25.1]
[1746477800552,6.8817,145.34,145.3,25.1]
[1746477800853,6.8817,145.34,145.31,6.8826]
[1746477801156,25.1,145.39,145.3,25.1]
[1746477801454,25.1,145.39,145.34,6.8814]
[1746477801651,25.1,145.39,145.3,25.1]
[1746477801855,25.1,145.39,145.35,6.8807]
[1746477802054,6.8798,145.38,145.3,25.1]
[1746477803155,5.9174,145.45,145.3,25.1]
[1746477803156,25.1,145.43,145.3,25.1]
[1746477803347,25.1,145.43,145.38,6.8795]
[1746477803557,25.1,145.43,145.34,25.1]
[1746477803752,25.1,145.43,145.35,6.1658]
[1746477803954,25.1,145.43,145.39,6.879]
[1746477804255,6.8778,145.42,145.35,6.1658]
[1746477804455,6.8778,145.42,145.38,6.8794]
[1746477804651,25.1,145.43,145.38,6.8794]
[1746477804855,25.1,145.43,145.35,6.1658]
[1746477805153,25.1,145.46,145.35,6.1658]
[1746477805349,6.8777,145.42,145.35,6.1658]
[1746477805554,6.8777,145.42,145.39,6.879]
[1746477806551,6.8782,145.41,145.39,6.879]
[1746477806759,6.8782,145.41,145.38,6.8791]
[1746477806956,25.1,145.46,145.38,25.1]
[1746477807150,6.879,145.39,145.38,25.1]
[1746477807650,6.8803,145.37,145.35,31.2658]
[1746477807856,25.1,145.42,145.35,27.2114]
[1746477808058,25.1,145.42,145.35,25.1]
[1746477808356,25.1,145.42,145.32,25.1]
[1746477808857,25.1,145.42,145.33,6.8816]
[1746477808858,6.8808,145.36,145.33,6.8816]
[1746477809352,25.1,145.42,145.32,25.1]
[1746477809553,6.8799,145.38,145.34,6.8813]
[1746477809854,6.8799,145.38,145.32,25.1]
[1746477810056,6.88,145.37,145.34,6.8811]
[1746477810458,25.1,145.42,145.32,25.1]
[1746477810659,6.8811,145.35,145.32,31.9821]
[1746477813262,6.8815,145.34,145.32,25.1]
[1746477813552,6.8815,145.34,145.31,6.8827]
[1746477814052,6.8815,145.34,145.32,6.8822]
[1746477814257,6.8811,145.35,145.32,6.8822]
[1746477815159,6.8815,145.34,145.31,6.8826]
[1746477815359,25.1,145.38,145.31,6.8826]
[1746477816462,6.8816,145.34,145.31,6.8826]
[1746477817862,25.1,145.38,145.3,6.8831]
[1746477818061,25.1,145.38,145.29,27.0905]
[1746477818467,6.8833,145.3,145.29,25.1]
[1746477818764,6.8833,145.3,145.27,6.8845]
[1746477819864,6.8833,145.3,145.26,33.946]
[1746477820065,6.8833,145.3,145.26,27.061]
[1746477820464,6.8841,145.29,145.26,25.1]
[1746477820662,25.1,145.34,145.23,25.1]
[1746477820963,6.8854,145.26,145.23,25.1]
[1746477821164,25.1,145.3,145.21,2.0873]
[1746477821365,25.1,145.3,145.2,168.13260541]
[1746477821562,6.8861,145.25,145.21,6.8871]
[1746477821757,25.1,145.3,145.21,6.8871]
[1746477823068,6.8859,145.25,145.21,6.8871]
[1746477823970,6.8862,145.24,145.21,6.8871]
[1746477826372,6.8859,145.25,145.21,6.8871]
[1746477827372,6.8862,145.24,145.21,7.8871]
[1746477827866,25.1,145.3,145.22,6.887]
[1746477828070,25.1,145.3,145.21,1.0]
[1746477828372,25.1,145.3,145.24,6.8859]
[1746477828772,6.8847,145.28,145.24,6.8859]
[1746477829275,6.8848,145.27,145.24,6.8859]
[1746477829573,25.1,145.3,145.21,1.0]
[1746477829873,6.886,145.25,145.21,7.8872]
[1746477830075,6.886,145.25,145.21,1.0]
[1746477830575,25.1,145.3,145.21,1.0]
[1746477830871,6.8849,145.27,145.21,1.0]
[1746477831578,25.1,145.3,145.21,1.0]
[1746477831874,25.1,145.3,145.22,6.887]
[1746477832076,25.1,145.3,145.21,1.0]
[1746477832977,25.1,145.3,145.23,6.8863]
[1746477833175,6.8853,145.26,145.23,6.8863]
[1746477833366,25.1,145.3,145.21,1.0]
[1746477833876,6.886,145.25,145.21,7.8872]
[1746477834878,6.886,145.25,145.22,6.887]
[1746477835280,25.1,145.3,145.21,1.0]
[1746477835482,25.1,145.3,145.24,6.8859]
[1746477836477,6.8851,145.27,145.24,6.8859]
[1746477837581,6.8852,145.26,145.23,6.8864]
[1746477838779,18.51565938,145.29,145.21,1.0]
[1746477838981,25.08,145.28,145.21,1.0]
[1746477839476,6.3157,145.27,145.21,1.0]
[1746477840083,6.8871,145.22,145.21,1.0]
[1746477848191,6.8868,145.23,145.21,1.0]
[1746477848380,25.08,145.24,145.21,1.0]
[1746477848694,6.8866,145.23,145.21,1.0]
[1746477849081,25.08,145.24,145.21,1.0]
[1746477849486,6.8871,145.22,145.21,1.0]
[1746477851393,6.8868,145.23,145.21,1.0]
[1746477851692,25.08,145.24,145.21,1.0]
[1746477852188,6.8871,145.22,145.21,1.0]
[1746477852393,25.08,145.24,145.21,1.0]
[1746477852993,6.8869,145.23,145.21,1.0]
[1746477853386,6.8871,145.22,145.21,1.0]
[1746477855694,6.8869,145.23,145.21,1.0]
[1746477855897,25.08,145.24,145.21,1.0]
[1746477856084,25.1,145.27,145.21,1.0]
[1746477856289,6.8864,145.24,145.21,1.0]
[1746477856588,25.1,145.27,145.21,1.0]
[1746477857194,6.8858,145.25,145.23,6.8863]
[1746477857494,25.1,145.27,145.21,26.1]
[1746477857697,25.1,145.27,145.24,6.8858]
[1746477858190,2.0129,145.3,145.21,26.1]
[1746477858191,6.8846,145.28,145.26,6.8851]
[1746477858395,25.1,145.3,145.26,6.8851]
[1746477859090,6.8843,145.28,145.26,6.8851]
[1746477861896,6.3899,145.35,145.28,6.8841]
[1746477862100,25.08,145.33,145.28,6.8841]
[1746477862491,6.8831,145.31,145.28,6.8841]
[1746477863597,6.8826,145.32,145.28,6.8841]
[1746477863798,25.08,145.33,145.27,6.8845]
[1746477864599,6.8836,145.3,145.26,6.885]
[1746477864796,25.08,145.33,145.25,25.08]
[1746477865098,6.8845,145.28,145.25,25.08]
[1746477865299,25.08,145.33,145.25,25.08]
[1746477865601,6.8841,145.29,145.25,31.9655]
[1746477869802,6.8841,145.29,145.26,6.8851]
[1746477870100,6.8835,145.3,145.26,6.8851]
[1746477870402,6.884,145.29,145.25,31.9654]
[1746477870805,6.884,145.29,145.25,25.08]
[1746477870996,6.884,145.29,145.26,6.8851]
[1746477872204,6.8835,145.3,145.27,6.8846]
[1746477872709,25.08,145.33,145.25,25.08]
[1746477873205,6.8845,145.28,145.24,6.8857]
[1746477873602,25.08,145.33,145.24,6.8857]
[1746477873804,6.8849,145.27,145.24,6.8857]
[1746477874002,6.8849,145.27,145.23,6.8864]
[1746477875605,6.8852,145.26,145.23,6.8864]
[1746477876199,6.8852,145.26,145.24,6.8861]
[1746477876708,6.8851,145.27,145.24,6.8861]
[1746477879101,6.8852,145.26,145.23,6.8864]
[1746477880500,6.8852,145.26,145.24,6.8861]
[1746477880698,6.8852,145.26,145.22,27.1078]
[1746477881210,6.8852,145.26,145.23,6.8862]
[1746477881509,6.8852,145.26,145.22,27.1078]
[1746477882203,6.8852,145.26,145.24,6.8859]
[1746477883110,6.885,145.27,145.22,27.1078]
[1746477883609,6.885,145.27,145.24,6.8857]
[1746477884410,6.885,145.27,145.25,6.8857]
[1746477886511,6.8845,145.28,145.25,6.8857]
[1746477890614,6.884,145.29,145.22,28.1078]
[1746477891310,6.884,145.29,145.26,6.885]
[1746477892516,25.08,145.3,145.27,6.8846]
[1746477893413,25.08,145.3,145.28,6.8842]
[1746477893610,25.08,145.3,145.22,28.1078]
[1746477894112,31.9637,145.3,145.22,28.1078]
[1746477894616,6.8837,145.3,145.22,39.68253373]
[1746477894915,6.883,145.31,145.22,39.68253373]
[1746477895117,6.883,145.31,145.28,6.884]
[1746477895317,6.883,145.31,145.22,39.68253373]
[1746477896114,6.883,145.31,145.28,6.884]
[1746477896516,6.8833,145.3,145.28,6.884]
[1746477896815,6.8833,145.3,145.27,6.8845]
[1746477899616,25.08,145.33,145.22,28.1078]
[1746477900217,25.08,145.33,145.25,6.8857]
[1746477900718,6.8845,145.28,145.25,6.8857]
[1746477900916,25.08,145.33,145.24,6.8859]
[1746477901124,25.08,145.33,145.22,28.1078]
[1746477901417,6.8845,145.28,145.22,28.1078]
[1746477901822,6.8845,145.28,145.25,6.8855]
[1746477904021,25.08,145.33,145.22,28.1078]
[1746477904319,11.57473373,145.31,145.22,28.1078]
[1746477904717,6.8851,145.27,145.24,6.8859]
[1746477907126,6.8852,145.26,145.24,6.8859]
[1746477907331,25.08,145.3,145.22,28.1078]
[1746477907831,6.885,145.27,145.24,6.8857]
[1746477908031,6.885,145.27,145.22,28.1078]
[1746477908234,25.08,145.3,145.22,28.1078]
[1746477909332,6.8844,145.28,145.25,6.8856]
[1746477909530,25.08,145.3,145.25,6.8856]
[1746477910235,25.08,145.3,145.24,6.886]
[1746477910434,25.08,145.3,145.22,28.1078]
[1746477910634,6.8855,145.26,145.23,6.8862]
[1746477910836,25.08,145.3,145.22,28.1078]
[1746477911237,6.8844,145.28,145.25,6.8854]
[1746477915337,6.8849,145.27,145.25,6.8854]
[1746477915525,25.08,145.3,145.24,6.8861]
[1746477915732,25.08,145.3,145.22,28.1078]
[1746477916238,6.8854,145.26,145.23,6.8863]
[1746477920439,25.08,145.3,145.22,34.9947]
[1746477920636,11.57473373,145.28,145.22,1.0]
[1746477921037,6.8866,145.23,145.22,1.0]
[1746477924238,11.57473373,145.25,145.21,1.0]
[1746477924239,6.8871,145.22,145.21,1.0]
[1746477939745,14.30128321,145.22,145.21,1.0]
[1746477940146,14.30128321,145.22,145.16,9.55408321]
[1746477940147,32.49418321,145.22,145.14,6.8906]
[1746477940351,32.49418321,145.22,145.1,545.36]
[1746477940352,7.41418321,145.18,145.11,13.63258321]
[1746477940552,7.41418321,145.14,145.11,2.0757]
[1746477940752,7.41418321,145.14,145.09,7.41418321]
[1746477940944,7.41418321,145.14,145.08,25.08]
[1746477941248,7.41418321,145.12,145.08,25.08]
[1746477941953,14.30628321,145.12,145.08,31.9737]
[1746477942252,7.41418321,145.12,145.08,25.08]
[1746477942755,7.41418321,145.13,145.08,25.08]
[1746477943254,14.30558321,145.13,145.1,6.8926]
[1746477943956,6.8914,145.13,145.1,6.8926]
[1746477944153,6.892,145.12,145.09,6.893]
[1746477946357,6.892,145.12,145.1,6.8928]
[1746477946555,6.8915,145.13,145.1,6.8928]
[1746477946957,6.8915,145.13,145.08,25.08]
[1746477946958,25.08,145.14,145.08,25.08]
[1746477947359,25.08,145.17,145.08,25.08]
[1746477947560,31.9697,145.17,145.15,6.8903]
[1746477948058,31.9697,145.17,145.14,6.8907]
[1746477948359,25.08,145.17,145.08,25.08]
[1746477948562,25.08,145.17,145.12,6.8915]
[1746477948754,25.08,145.17,145.08,25.08]
[1746477949654,25.08,145.17,145.11,6.892]
[1746477949859,6.8909,145.14,145.11,6.892]
[1746477950355,6.8909,145.14,145.12,6.8917]
[1746477951658,6.8915,145.13,145.08,25.08]
[1746477951859,11.5985424,145.16,145.08,25.08]
[1746477952254,6.8922,145.12,145.09,6.8929]
[1746477952755,6.8922,145.12,145.09,7.8929]
[1746477953955,6.8922,145.12,145.09,1.0]
[1746477954164,25.08,145.17,145.09,1.0]
[1746477954354,11.5985424,145.15,145.09,1.0]
[1746477954551,6.8918,145.13,145.09,7.8932]
[1746477954861,6.8918,145.13,145.09,1.0]
[1746477955064,11.5985424,145.15,145.09,1.0]
[1746477955965,6.8922,145.12,145.09,1.0]
[1746477957164,6.8924,145.11,145.09,1.0]
[1746477958865,11.5985424,145.15,145.09,1.0]
[1746477959559,6.8926,145.11,145.09,1.0]
[1746477961676,6.8928,145.1,145.09,1.0]
[1746477964260,6.8942,145.07,145.06,1.0]
[1746477965271,25.08,145.09,145.06,1.0]
[1746477965762,6.8942,145.07,145.06,1.0]
[1746477967074,6.8941,145.08,145.06,1.0]
[1746477968071,6.8942,145.07,145.06,1.0]
[1746477970673,36.6785424,145.09,145.03,1.0]
[1746477971076,6.8956,145.04,145.03,1.0]
[1746477972483,6.8954,145.05,145.03,1.0]
[1746477972978,6.8949,145.06,145.03,1.0]
[1746477973678,6.8949,145.06,145.03,7.8958]
[1746477974981,6.8953,145.05,145.03,1.0]
[1746477975177,25.08,145.09,145.03,1.0]
[1746477975377,11.5985424,145.07,145.03,1.0]
[1746477975975,6.8956,145.04,145.03,1.0]